Cogmind - Beta 14 *** ADVENTURER MODE // 2024.10.16 @ 19:22:00 Player: Jefffff Result: Destroyed by G-47 Trooper with Particle Gun Performance ------------- Evolutions (0) 0 Regions Visited (1) 200 Robots Destroyed (13) 65 Value Destroyed (239) 239 Prototype IDs (2) 40 Alien Tech Used (0) 0 Bonus (0) 0 TOTAL SCORE: 544 Bonus ------- None Cogmind --------- Core Integrity 0/250 Matter 299/300 Energy 249/250 System Corruption 0% Temperature Cool (15) Movement Walking (190) Ox1 Location -10/Materials Parts ------- > --- POWER (1) -------- Ion Engine > --- PROPULSION (2) --- Aluminum Leg Aluminum Leg > --- UTILITY (2) ------ Small Storage Unit Large Storage Unit > --- WEAPON (2) ------- Light Assault Rifle Hammer > --- INVENTORY (15) --- Ion Engine Wheel Wheel Visual Processing Unit Sensor Array Signal Interpreter Terrain Scan Processor Small Laser Small Laser Beam Cannon Hammer Hammer Peak State ------------ > --- POWER ------------ Ion Engine > --- PROPULSION ------- Aluminum Leg Aluminum Leg > --- UTILITY ---------- Small Storage Unit Large Storage Unit > --- WEAPON ----------- Light Assault Rifle Hammer > --- INVENTORY -------- Ion Engine Wheel Wheel Wheel Terrain Scan Processor Small Laser Small Laser Hammer Hammer [Rating: 8] Favorites ----------- Power Ion Engine Engine Ion Engine Propulsion Aluminum Leg Leg Aluminum Leg Utility Small Storage Unit Storage Small Storage Unit Weapon Light Assault Rifle Energy Gun Small Laser Ballistic Gun Light Assault Rifle Impact Weapon Hammer Build | -11 -10 ------- Run | Yrd Mat Slots Evolved . | . . Power . | . . Propulsion . | . . Utility . | . . Weapon . | . . Parts Attached 19 | 6 13 Power 5 | 1 4 Engine 5 | 1 4 Core . | . . Reactor . | . . Propulsion 6 | 2 4 Treads . | . . Leg 6 | 2 4 Wheel . | . . Hover . | . . Flight . | . . Utility 3 | 1 2 Device . | . . Storage 3 | 1 2 Processor . | . . Hackware . | . . Protection . | . . Artifact . | . . Weapon 5 | 2 3 Energy Gun 2 | 2 . Energy Cannon . | . . Ballistic Gun 2 | . 2 Ballistic Cannon . | . . Launcher . | . . Special Weapon . | . . Impact Weapon 1 | . 1 Slashing Weapon . | . . Piercing Weapon . | . . Special Melee Weapon . | . . Unidentified Prototypes . | . . Parts Lost 3 | . 3 Power 1 | . 1 Propulsion 2 | . 2 Utility . | . . Weapon . | . . Highest Loss Streak 3 | . 3 To Critical Strikes . | . . Average Slot Usage (%) 88 | . 88 Engine 13 | . 13 Leg 26 | . 26 Storage 19 | . 19 Energy Gun 1 | . 1 Ballistic Gun 14 | . 14 Impact Weapon 12 | . 12 Peak Build Rating 8 | 6 8 Average Rating 6 | 4 6 On Entrance 3 | . 6 Naked Turns . | . . Heaviest Build 33 | 11 33 Greatest Support 20 | 20 20 Greatest Overweight (x) 4 | . 4 Average Overweight (x) . | . . Largest Inventory Capacity 15 | 8 15 Average Capacity 10 | 7 10 Most Carried 12 | 2 12 Average Carried 8 | . 8 Final Capacity 15 | 8 15 Final Carried 12 | 2 12 Class Distribution -------------------- 70% | Mutant 29% | Scavenger-Mutant Dominant Class ---------------- Mutant | -10/Materials Resources | -11 -10 ----------- Run | Yrd Mat Matter Collected 500 | 162 338 Remotely . | . . Salvage Created 351 | . 351 Parts 27 | . 27 Haulers Intercepted 1 | . 1 Recyclers Shooed . | . . Parts Field Recycled . | . . Retrieved Matter . | . . Parts Self-Destructed . | . . Prevented . | . . Kills | -11 -10 ------- Run | Yrd Mat Combat Hostiles Destroyed 10 | . 10 Melee 2 | . 2 Guns 6 | . 6 Classes Destroyed 5 | . 5 Worker 1 | . 1 Hauler 1 | . 1 Watcher 1 | . 1 Swarmer 5 | . 5 Grunt 5 | . 5 Best Kill Streak 4 | . 4 Combat Bots Only 3 | . 3 Max Kills in Single Turn 1 | . 1 Gunslinging . | . . Exploded . | . . Melee 1 | . 1 Uniques/NPCs Destroyed . | . . Combat | -11 -10 -------- Run | Yrd Mat Hostile Shots Fired 156 | . 156 Missed 36 | . 36 Damage Taken 929 | . 929 Core 255 | . 255 Absorbed by Shields . | . . Ignored by Resistances 301 | . 301 Core Remaining (%) 100 | 100 . Volleys Fired 48 | . 48 Largest 2 | . 2 Hottest 60 | . 60 Shots Fired 49 | . 49 Gun 49 | . 49 Cannon . | . . Launcher . | . . Special . | . . Kinetic 48 | . 48 Thermal 1 | . 1 Explosive . | . . Electromagnetic . | . . Robot Hit Streak 8 | . 8 Robot Miss Streak 2 | . 2 Penetration Max . | . . Secondary Targets . | . . Shots Hit Robots 50 | . 50 Core Hits 20 | . 20 Critical Kills . | . . Critical Parts Destroyed 2 | . 2 Critical Strikes 2 | . 2 Smash 2 | . 2 Melee Attacks 22 | . 22 Impact 22 | . 22 Slashing . | . . Piercing . | . . Sneak Attacks 1 | . 1 Combat Hostiles . | . . Follow-up Attacks . | . . Damage Inflicted 728 | . 728 Guns 313 | . 313 Cannons . | . . Explosions . | . . Melee 415 | . 415 Ramming . | . . Kinetic 313 | . 313 Thermal . | . . Explosive . | . . Electromagnetic . | . . Impact 415 | . 415 Slashing . | . . Piercing . | . . Highest Corruption . | . . Average Corruption . | . . Corruption Purged . | . . Corruption Blocked . | . . Overload Shots . | . . Overflow Damage 83 | . 83 Projectiles . | . . Explosions . | . . Melee 83 | . 83 Knockbacks . | . . Impact . | . . Kinetic . | . . Secondary . | . . Self-Inflicted Damage . | . . Shots . | . . Rammed . | . . Targets Rammed . | . . Kicked . | . . Crushed . | . . Highest Temperature 20 | . 20 Average Temperature 7 | . 7 Received Heat Transfer 441 | . 441 Siege Activations . | . . Robots Corrupted 3 | . 3 Combat Hostiles 2 | . 2 Parts Fried 1 | . 1 Impact Corruptions 6 | . 6 Robots Melted . | . . Combat Hostiles . | . . Parts Melted . | . . Heat Transferred . | . . Parts Sabotaged . | . . Parts Stolen . | . . Parts Stripped . | . . Power Chain Reactions . | . . Alert | -11 -10 ------- Run | Yrd Mat Peak Influence 315 | . 315 Initial . | . . Average 125 | . 136 Maximum Alert Level 1 | . 1 Low Security (%) 80 | 100 78 Level 1 19 | . 21 Level 2 . | . . Level 3 . | . . Level 4 . | . . Level 5 . | . . High Security . | . . Max Security . | . . Squads Dispatched 1 | . 1 Investigation 1 | . 1 Extermination . | . . Reinforcement . | . . Assault . | . . Garrison . | . . Intercept . | . . Searches Triggered . | . . Construction Impeded . | . . Haulers Reinforced . | . . Active Scanning Responses . | . . Cargo Convoy Interrupts . | . . Stealth | -11 -10 --------- Run | Yrd Mat Distress Signals 1 | . 1 Communications Jammed . | . . Distress Signals . | . . Times Spotted 20 | . 20 Peak Tracking Total 6 | . 6 Tactical Retreats 7 | . 7 Traps | -11 -10 ------- Run | Yrd Mat Traps Triggered 2 | . 2 Indirectly . | . . Trap Hack Attempts . | . . Triggered . | . . Disarmed . | . . Reprogrammed . | . . Reused . | . . Traps Extracted . | . . Installed . | . . Triggered . | . . Machines | -11 -10 ---------- Run | Yrd Mat Machines Disabled . | . . Max in Single Turn . | . . Machines Repaired . | . . Machines Dismantled . | . . Machines Sabotaged . | . . Overloaded Fab Kills . | . . Hacking | -11 -10 --------- Run | Yrd Mat Machines Accessed 4 | . 4 Terminals 4 | . 4 Fabricators . | . . Repair Stations . | . . Recycling Units . | . . Scanalyzers . | . . Garrison Access . | . . Total Hacks 10 | . 10 Successful 5 | . 5 Failed 5 | . 5 Catastrophic . | . . Database Lockouts . | . . Manual 7 | . 7 Terminals 10 | . 10 Fabricators . | . . Repair Stations . | . . Recycling Units . | . . Scanalyzers . | . . Garrison Access . | . . Terminal Hacks 1 | . 1 Prototype ID Bank 1 | . 1 Fabricator Hacks . | . . Repair Station Hacks . | . . Recycling Unit Hacks . | . . Scanalyzer . | . . Garrison Access Hacks . | . . Unauthorized Hacks 4 | . 4 Terminals 4 | . 4 Botnet 4 | . 4 Fabricators . | . . Repair Stations . | . . Recycling Units . | . . Scanalyzers . | . . Garrison Access . | . . Data Cores Recovered . | . . Used . | . . Hacking Detections 3 | . 3 Full Trace Events . | . . Feedback Events . | . . Feedback Blocked . | . . Robot Schematics Acquired . | . . Robots Built . | . . Authchips . | . . Time . | . . Total Robot Build Rating . | . . Part Schematics Acquired . | . . Parts Built . | . . Authchips . | . . Time . | . . Total Part Build Rating . | . . Parts Repaired . | . . Time . | . . Parts Recycled . | . . Recycled Matter . | . . Retrieved Matter . | . . Retrieved Components . | . . Parts Scanalyzed . | . . Part Schematics Acquired . | . . Parts Damaged . | . . Bothacking | -11 -10 ------------ Run | Yrd Mat Used RIF Installer . | . . Robots Hacked . | . . Non-combat . | . . Combat . | . . Robot Hacks Applied . | . . Relay Couplers Released . | . . Fabnet Peak Effective % . | . . Robots Rewired . | . . Allies Hacked . | . . Hacks Repelled . | . . Allies | -11 -10 -------- Run | Yrd Mat Total Allies . | . . Largest Group . | . . Highest-Rated Group . | . . Highest-Rated Ally . | . . Total Orders . | . . Ally Attacks . | . . Total Damage . | . . Kills . | . . Allies Corrupted . | . . Allies Melted . | . . Intel | -11 -10 ------- Run | Yrd Mat Robot Analysis Total . | . . Derelict Logs Recovered . | . . Drone Launches . | . . Drone Recoveries . | . . Exploration | -11 -10 ------------- Run | Yrd Mat Turns Passed 840 | 66 774 Spaces Moved 437 | 47 390 Core 8 | 1 7 Treads . | . . Legs 429 | 46 383 Wheels . | . . Hover . | . . Flight . | . . Fastest Speed 50 | 50 120 Average Speed 145 | 118 149 Slowest Speed 250 | 120 250 Overloaded Moves . | . . Propulsion Burnouts . | . . Robots Hopped . | . . Cave-ins Triggered . | . . Exploration Rate (%) 27 | 4 50 Regions Visited 1 Branch Regions . Pre-discovered Areas . | . . Known Exits Taken . | . . Unknown Exits Taken 1 | 1 . Scrap Searched . | . . Spaces Dug 3 | . 3 Terrain Destroyed 3 | . 3 Melee 3 | . 3 Projectile . | . . AOE . | . . Terrain Rammed . | . . Walls Destroyed . | . . Machines Disabled . | . . Actions | -11 -10 --------- Run | Yrd Mat Total 565 | 54 511 Wait 6 | . 6 Move 436 | 46 390 Hop . | . . Pick Up 20 | 2 18 Fast Attach 10 | 6 4 Attach 2 | . 2 Detach . | . . Swap 7 | . 7 Drop 14 | . 14 Fire 48 | . 48 Melee 22 | . 22 Ram . | . . Kick . | . . Crush . | . . Escape Stasis . | . . Rewire . | . . Trap . | . . Miscellaneous . | . . Route ------- -11/Scrapyard -10/Materials (discovered 1 exit: [*Min]) History --------- Turn | Location | Event 5 | -11/Scrapyard | Discovered new exit (range 16) 67 | -11/Scrapyard | Entered Materials 281 | -10/Materials | Core integrity fell below 50% 307 | -10/Materials | Lost 3 parts (1p2n) 311 | -10/Materials | Build established: Mutant 350 | -10/Materials | Core integrity fell below 20% 471 | -10/Materials | Discovered new exit (range 8) 841 | -10/Materials | Destroyed by G-47 Trooper with Particle Gun Last Messages --------------- 00583_ Acquired Visual Processing Unit. 00584_ Acquired 21 matter. 00587_ Acquired Signal Interpreter. 00708_ Acquired Beam Cannon. 00730_ Connecting with Terminal... >>Trojan(Botnet) Trojan loaded successfully. Testing... Terminal linked with 2 systems. Awaiting botnet instructions. 00762_ Connecting with Terminal... >>Trojan(Botnet) Trojan loaded successfully. Testing... Terminal linked with 3 systems. Awaiting botnet instructions. 00820_ Critical hit (Burn: +37). 00837_ Acquired 5 matter. 00840_ Acquired 1 matter. 00841_ G-34 Mercenary destroyed. Map ----- +----------------------------------------------------+ | ?????????????????#???# ### ############### | | ?????????????????# ??# = #?# #??????#####??? | | ?????????????????# ?# ! #?# #?????##"""##?? | | ?????????????????# ?+ #?# #????##"|||"##? | | ?????????????????# #######+##### ##???#"" ""#? | | ?????????????????# ??????# #??# ##### #? | | ????????????????## #?????# #??# + < #? | | ????????????????# ###### #??# ##### #? | | ????????????????# #??# #???# #? | | ????????????????+ #### #???## ##? | | ????????????????# ####### #### | | ????????????????# # ####### # = # # | | ????????????????#####?#k # + # + + | | ??????????????????????# # # # """ # # | | ??????????????????????#k # """ # # """ # # | | ??????????????????????# # """ # # """ # # | | ??????????????????????# # """ # # # # | | ??????????????????????# # # #! # ###+ | | ??????????????????????# ####### ! ####### #?# | | ?????????????????????## =####### =%##???## ### | | ?????????????????????# =/* ==!##### ## | | ?????????????????????# !! = T" | | ?????????????????????+ % """ " | | ?????????????????????#g """"" | | ?????????????????????# ==!""""" ##### ##+ | | ?????????????????????# @%[""""" #???####### | | ?????????????????????# *! """ #?????????# | | ?????????????????????# [ ########### | | ?????????????????????# * # ## | | ?????????????????????# """ # ! ## | | ????????????????? """"" # ## | | ?????????????? """"" # ## | | ????????????? k """"" + #### | | ??????????????######## """ # #??? | | ?????????????????????# # #??? | | ?????????????????????## # #??? | | ??????????????????????# """ # #??? | | ??????????????????????# """"" ###+######??? | | ??????????????????????# """"" ### #???????? | | ??????????????????????# """"" #???????? | | ??????????????????????# """ #???????? | | ??????????????????????# = #???????? | | ??????????????????????? % ######### | | ??????????????????????? % #"# | | ??????????????????????????##############/##### # " | | ????????????????????????????????????# #?# # " | | ????????????????????????????????????# #?# # " | | ????????????????????????????????????# "" #?# # | | ????????????????????????????????????# T" ### # | | ????????????????????????????????????# "" + + | +----------------------------------------------------+ Best States ------------- Heat Dissipation 25 Energy Generation 10 Energy Capacity 250 Matter Stores 300 Matter Capacity 300 Sight Range 16 Terrain Scan Density 10 Resistance: KI 20 Resistance: TH 20 Resistance: EX 20 Resistance: EM 20 Resistance: I 20 Resistance: S 20 Resistance: P 20 Evasion (%) 55 Offensive Hacking 10 Item Schematics ----------------- None Robot Schematics ------------------ None Fabricated ------------ Nothing Alien Tech Used ----------------- None Achievements -------------- None Challenges ------------ None Game ------ Seed GravitonMetafiberMeganuke Manual? 0 Play Time 00:09:50 Cumulative 187.0 hours Start 2024.10.16 @ 09:11:06 End 2024.10.16 @ 19:22:00 Sessions 4 Manual Loads 0 Difficulty Adventurer Special Mode None Game No. 221 Rogue 0 Adventurer 221 Explorer 0 Win Type - Total 0 Types 0/0/0/0/0/0/0/0/0 Lore% 59 Gallery% 56 Achievement% 45 Wizard Run 0 Options --------- Layout 2 ASCII 0 Keyboard 0 Movement Mouse Keybinds 0 Fullscreen 2 Font 48/Smallcaps Map View 50x44 Zoom Use 5% Tactical HUD 1 Map Filters NONE Filters NONE Steam 1 RUN: f773f077-e147-4aba-a593-89d1e6b3791c